fUSD/lending_fUSD_20241107
["ID","MTS","AMOUNT","RATE_DAILY","PERIOD"]
[341585391,1731009066644,-1471.11,0.00028287,2]
[341585392,1731009066652,-2151.01,0.00028287,2]
[341585393,1731009066661,-1535.07,0.00028287,2]
[341585394,1731009066671,-500.0,0.00028287,2]
[341585395,1731009066680,-500.0,0.00028287,2]
[341585396,1731009066688,-905.47,0.00028287,2]
[341585397,1731009066698,-1354.42,0.00028287,2]
[341585398,1731009066708,-500.0,0.00028287,2]
[341585399,1731009066717,-2895.19,0.00028287,2]
[341585400,1731009066726,-1026.51,0.00028287,2]
[341585401,1731009066735,-500.0,0.00028287,2]
[341585402,1731009066744,-1371.67,0.00028287,2]
[341585403,1731009066754,-1973.43,0.00028287,2]
[341585404,1731009066763,-1097.86,0.00028287,2]
[341585405,1731009066772,-7865.91,0.00028287,2]
[341585406,1731009066782,-500.0,0.00028287,2]
[341585407,1731009066791,-500.0,0.00028287,2]
[341585408,1731009066801,-829.81,0.00028287,2]
[341585409,1731009066811,-508.36,0.00028288,2]
[341585410,1731009066820,-500.0,0.00028288,2]
[341585411,1731009066829,-500.0,0.00028288,2]
[341585412,1731009066837,-500.0,0.00028288,2]
[341585413,1731009066846,-500.0,0.00028288,2]
[341585414,1731009066855,-500.0,0.00028288,2]
[341585415,1731009066866,-500.0,0.00028288,2]
[341585416,1731009066878,-500.0,0.00028288,2]
[341585417,1731009066887,-1124.28,0.00028288,2]
[341585418,1731009066896,-500.0,0.00028288,2]
[341585419,1731009066905,-500.0,0.00028288,2]
[341585420,1731009066914,-500.0,0.00028288,2]
[341585421,1731009066923,-500.0,0.00028288,2]
[341585422,1731009066932,-886.61,0.00028288,2]
[341585423,1731009066943,-580.7,0.00028288,2]
[341585424,1731009066953,-524.53760161,0.00028288,2]
[341585425,1731009066963,-500.0,0.00028288,2]
[341585426,1731009066972,-937.95,0.00028288,2]
[341585427,1731009066981,-817.31,0.00028288,2]
[341585428,1731009066991,-500.0,0.00028288,2]
[341585429,1731009067000,-531.21,0.00028288,2]
[341585430,1731009067009,-500.0,0.00028288,2]
[341585431,1731009067018,-251.5,0.00028288,2]
[341585432,1731009067027,-500.0,0.00028288,2]
[341585433,1731009067036,-1080.7,0.00028288,2]
[341585434,1731009067045,-500.0,0.00028288,2]
[341585435,1731009067054,-500.0,0.00028288,2]
[341585436,1731009067064,-500.0,0.00028288,2]
[341585437,1731009067074,-500.0,0.00028288,2]
[341585438,1731009067083,-151.0,0.00028288,7]
[341585439,1731009067093,-500.0,0.00028288,2]
[341585440,1731009067102,-878.64,0.00028288,2]
[341585441,1731009067112,-500.0,0.00028288,2]
[341585442,1731009067123,-1049.96,0.00028288,2]
[341585443,1731009067134,-500.0,0.00028288,2]
[341585444,1731009067144,-599.17,0.00028288,2]
[341585445,1731009067153,-500.0,0.00028288,2]
[341585446,1731009067162,-1518.12,0.00028288,2]
[341585447,1731009067172,-500.0,0.00028288,2]
[341585448,1731009067181,-500.0,0.00028288,2]
[341585449,1731009067190,-503.64036018,0.00028288,2]
[341585450,1731009067199,-151.0,0.00028288,7]
[341585451,1731009067209,-500.0,0.00028288,2]
[341585452,1731009067218,-500.0,0.00028288,2]
[341585453,1731009067227,-500.0,0.00028288,2]
[341585454,1731009067238,-517.89,0.00028288,2]
[341585455,1731009067248,-537.08,0.00028288,2]
[341585456,1731009067258,-500.0,0.00028288,2]
[341585457,1731009067267,-151.0,0.00028288,7]
[341585458,1731009067276,-511.66,0.00028288,2]
[341585459,1731009067286,-500.0,0.00028288,2]
[341585460,1731009067295,-500.0,0.00028288,2]
[341585461,1731009067304,-1584.47,0.00028288,2]
[341585462,1731009067313,-500.0,0.00028288,2]
[341585463,1731009067324,-151.0,0.00028288,7]
[341585464,1731009067333,-823.16,0.00028288,2]
[341585465,1731009067343,-500.0,0.00028288,2]
[341585466,1731009067352,-500.0,0.00028288,2]
[341585467,1731009067361,-642.71,0.00028288,2]
[341585468,1731009067370,-500.0,0.00028288,2]
[341585469,1731009067380,-516.81,0.00028288,2]
[341585470,1731009067389,-517.31,0.00028288,2]
[341585471,1731009067398,-1159.09,0.00028288,2]
[341585472,1731009067407,-529.28498773,0.00028288,2]
[341585473,1731009067416,-1000.0,0.00028288,2]
[341585474,1731009067425,-500.0,0.00028288,2]
[341585475,1731009067434,-642.33,0.00028288,2]
[341585476,1731009067444,-500.0,0.00028288,2]
[341585477,1731009067453,-500.0,0.00028288,2]
[341585478,1731009067463,-665.12,0.00028288,2]
[341585479,1731009067473,-500.0,0.00028288,2]
[341585480,1731009067482,-500.0,0.00028288,2]
[341585481,1731009067492,-323.10455,0.00028288,7]
[341585482,1731009067501,-500.0,0.00028288,2]
[341585483,1731009067510,-323.10455,0.00028288,7]
[341585484,1731009067520,-500.0,0.00028288,2]
[341585485,1731009067529,-500.0,0.00028288,2]
[341585486,1731009067538,-500.0,0.00028288,2]
[341585487,1731009067549,-696.33,0.00028288,2]
[341585488,1731009067558,-1126.38,0.00028288,2]
[341585489,1731009067567,-500.0,0.00028288,2]
[341585490,1731009067575,-796.09,0.00028288,2]
[341585491,1731009067585,-500.0,0.00028288,2]
[341585492,1731009067595,-1320.36,0.00028288,2]
[341585493,1731009067603,-684.67,0.00028288,2]
[341585494,1731009067613,-568.45,0.00028288,2]
[341585495,1731009067622,-558.58,0.00028288,2]
[341585496,1731009067631,-757.09,0.00028288,2]
[341585497,1731009067641,-500.0,0.00028288,2]
[341585498,1731009067650,-500.0,0.00028288,2]
[341585499,1731009067659,-500.0,0.00028288,2]
[341585500,1731009067668,-318.48755012,0.00028288,2]
[341585501,1731009067678,-500.0,0.00028288,2]
[341585502,1731009067688,-660.29,0.00028288,2]
[341585503,1731009067697,-1142.83,0.00028288,2]
[341585504,1731009067709,-862.96,0.00028288,2]
[341585505,1731009067718,-500.0,0.00028288,2]
[341585506,1731009067728,-500.0,0.00028288,2]
[341585507,1731009067737,-1108.47,0.00028288,2]
[341585508,1731009067749,-674.3,0.00028288,2]
[341585509,1731009067758,-500.0,0.00028288,2]
[341585510,1731009067769,-500.0,0.00028288,2]
[341585511,1731009067779,-500.0,0.00028288,2]
[341585512,1731009067789,-500.0,0.00028288,2]
[341585513,1731009067800,-500.0,0.00028288,2]
[341585514,1731009067811,-500.0,0.00028288,2]
[341585515,1731009067820,-500.0,0.00028288,2]
[341585516,1731009067830,-721.86,0.00028288,2]
[341585517,1731009067839,-500.0,0.00028288,2]
[341585518,1731009067848,-985.75,0.00028288,2]
[341585519,1731009067856,-500.0,0.00028288,2]
[341585520,1731009067864,-500.0,0.00028288,2]
[341585521,1731009067875,-666.69,0.00028288,2]
[341585522,1731009067883,-638.61,0.00028288,2]
[341585523,1731009067892,-500.0,0.00028288,2]
[341585524,1731009067901,-500.0,0.00028288,2]
[341585525,1731009067910,-553.76,0.00028288,2]
[341585526,1731009067919,-500.0,0.00028288,2]
[341585527,1731009067928,-1250.28,0.00028288,2]
[341585528,1731009067937,-516.17,0.00028288,2]
[341585529,1731009067947,-500.0,0.00028288,2]
[341585530,1731009067956,-743.78,0.00028288,2]
[341585531,1731009067964,-500.0,0.00028288,2]
[341585532,1731009067973,-500.0,0.00028288,2]
[341585533,1731009067982,-500.0,0.00028288,2]
[341585534,1731009067991,-1107.08,0.00028288,2]
[341585535,1731009068000,-500.0,0.00028288,2]
[341585536,1731009068009,-500.0,0.00028288,2]
[341585537,1731009068018,-956.64,0.00028288,2]
[341585538,1731009068027,-500.0,0.00028288,2]
[341585539,1731009068036,-500.0,0.00028288,2]
[341585540,1731009068045,-500.0,0.00028288,2]
[341585541,1731009068054,-500.0,0.00028288,2]
[341585542,1731009068063,-1900.6,0.00028288,2]
[341585543,1731009068072,-433.40073574,0.00028288,2]
[341585544,1731009068082,-500.0,0.00028288,2]
[341585545,1731009068091,-621.55,0.00028288,2]
[341585546,1731009068100,-500.0,0.00028288,2]
[341585547,1731009068109,-500.0,0.00028288,2]
[341585548,1731009068118,-500.0,0.00028288,2]
[341585549,1731009068130,-500.0,0.00028288,2]
[341585550,1731009068139,-643.74355903,0.00028288,2]
[341585551,1731009068149,-500.0,0.00028288,2]
[341585552,1731009068159,-500.0,0.00028288,2]
[341585553,1731009068170,-588.82,0.00028288,2]
[341585554,1731009068182,-1174.57,0.00028288,2]
[341585555,1731009068193,-500.0,0.00028288,2]
[341585556,1731009068204,-730.09,0.00028288,2]
[341585557,1731009068215,-500.0,0.00028288,2]
[341585558,1731009068225,-948.29,0.00028288,2]
[341585559,1731009068236,-1254.51,0.00028288,2]
[341585560,1731009068249,-500.0,0.00028288,2]
[341585561,1731009068260,-954.33,0.00028288,2]
[341585562,1731009068271,-885.61,0.00028288,2]
[341585563,1731009068283,-500.0,0.00028288,2]
[341585564,1731009068293,-500.0,0.00028288,2]
[341585565,1731009068303,-500.0,0.00028288,2]
[341585566,1731009068313,-823.22,0.00028288,2]
[341585567,1731009068324,-500.0,0.00028288,2]
[341585568,1731009068333,-600.99,0.00028288,2]
[341585569,1731009068343,-803.41,0.00028288,2]
[341585570,1731009068352,-500.0,0.00028288,2]
[341585571,1731009068362,-500.0,0.00028288,2]
[341585572,1731009068371,-500.0,0.00028288,2]
[341585573,1731009068384,-702.35,0.00028288,2]
[341585574,1731009068394,-500.0,0.00028288,2]
[341585575,1731009068404,-500.0,0.00028288,2]
[341585576,1731009068413,-500.0,0.00028288,2]
[341585577,1731009068423,-500.0,0.00028288,2]
[341585578,1731009068432,-500.0,0.00028288,2]
[341585579,1731009068441,-498.03695272,0.00028288,2]
[341585580,1731009068450,-611.54,0.00028288,2]
[341585581,1731009068459,-540.29,0.00028288,2]
[341585582,1731009068468,-1132.74,0.00028288,2]
[341585583,1731009068477,-500.0,0.00028288,2]
[341585584,1731009068487,-538.58,0.00028288,2]
[341585585,1731009068496,-743.97,0.00028288,2]
[341585586,1731009068506,-500.0,0.00028288,2]
[341585587,1731009068515,-500.0,0.00028288,2]
[341585588,1731009068524,-500.0,0.00028288,2]
[341585589,1731009068534,-393.05460263,0.00028288,2]
[341585590,1731009090561,161.29,0.00021791,2]
[341585591,1731009098647,2357.7327,0.00027102,2]
[341585592,1731009119347,1100.0,0.0002378,2]
[341585593,1731009119409,2600.0,0.0002378,2]
[341585594,1731009120904,1100.0,0.00024876,7]
[341585595,1731009120963,2600.0,0.00024876,7]
[341585596,1731009122492,1100.0,0.00025698,7]
[341585597,1731009122533,2600.0,0.00025698,7]
[341585598,1731009124103,1100.0,0.0002652,7]
[341585599,1731009124140,2600.0,0.0002652,7]
[341585600,1731009181188,300.0,0.00019725,2]
[341585602,1731009224351,167.5,0.00015342,2]
[341585603,1731009301848,150.0,0.00019725,2]
[341585604,1731009301870,139.0,0.00019725,2]
[341585605,1731009322844,-180.29175,0.0002148,2]
[341585606,1731009322866,-1515.4,0.00024098,2]
[341585607,1731009322888,-15229.366735,0.00025336,2]
[341585608,1731009322909,-3074.941515,0.00025464,2]
[341585609,1731009326026,-553.8254188,0.00025464,2]
[341585610,1731009326048,-190.64,0.00025564,2]
[341585611,1731009326070,-3628.76693379,0.00025628,2]
[341585612,1731009326091,-3628.76693379,0.00025791,2]
[341585613,1731009326115,-189.76713771,0.00025872,2]
[341585614,1731009326136,-829.98789516,0.00025872,2]
[341585615,1731009326158,-2205.89,0.00025891,2]
[341585616,1731009326180,-1700.0,0.00025972,7]
[341585617,1731009329567,7072.35568075,0.00025872,2]
[341585618,1731009602768,500.0,0.0001726,2]
[341585619,1731009663754,242.0,0.00025,120]
[341585621,1731009702929,200.0,0.00025,120]
[341585623,1731009741322,155.48,0.00015342,2]
[341585624,1731010052099,-173.62,0.00020532,2]
[341585625,1731010052118,-2971.46134244,0.00023134,2]
[341585626,1731010052137,-189.76713771,0.00023622,2]
[341585627,1731010052157,-1439.63,0.00023722,2]
[341585628,1731010052177,-351.9288285,0.00024861,2]
[341585630,1731010094530,250.0,0.00021,2]
[341585631,1731010095626,300.0,0.00023,2]
[341585632,1731010117011,-174.96,0.00024141,2]
[341585633,1731010117037,-453.04,0.00024861,2]
[341585637,1731010149465,-1182.2611715,0.00024861,2]
[341585638,1731010149487,-350.0,0.00025,2]
[341585639,1731010149535,-1987.23,0.00025261,2]
[341585640,1731010149556,-150.99,0.000253,2]
[341585641,1731010149576,-10315.92212291,0.000253,2]
[341585642,1731010149600,-280.0,0.000253,10]
[341585643,1731010149620,-2000.0,0.00025309,2]
[341585644,1731010149640,-268.52,0.00025325,2]
[341585645,1731010149663,-23305.19481177,0.0002536,2]
[341585646,1731010155105,-594.80518823,0.0002536,2]
[341585647,1731010155126,-250.0,0.00025412,2]
[341585648,1731010155146,-200.0,0.00025418,2]
[341585649,1731010155166,-160.867206,0.00025471,2]
[341585650,1731010155185,-1697.34,0.00025472,2]
[341585651,1731010155206,-222.97,0.00025483,120]
[341585652,1731010155225,-833.09,0.00025483,2]
[341585653,1731010155244,-150.0,0.00025494,2]
[341585654,1731010155264,-1244.84,0.00025513,2]
[341585655,1731010155283,-385.75,0.000256,2]
[341585656,1731010155308,-2266.72,0.00025645,2]
[341585657,1731010155327,-373.85,0.00025645,2]
[341585658,1731010155348,-1987.23,0.0002566,2]
[341585659,1731010155368,-405.99,0.00025663,2]
[341585660,1731010155390,-1244.33,0.00025665,2]
[341585661,1731010155414,-1500.0,0.00025672,2]
[341585662,1731010155435,-1500.0,0.00025685,2]
[341585663,1731010155456,-170.1,0.00025686,2]
[341585664,1731010155476,-300.0,0.00025735,2]
[341585665,1731010155497,-259.91,0.00025773,2]
[341585666,1731010155517,-453.92,0.00025821,2]
[341585667,1731010155541,-179.67,0.00025844,30]
[341585668,1731010155562,-167.05,0.00025854,2]
[341585669,1731010155582,-612.3,0.0002589,2]
[341585670,1731010155607,-20036.8535595,0.00025961,2]
[341585671,1731010155626,-1300.0,0.00025972,7]
[341585672,1731010155648,-250.0,0.00025979,2]
[341585673,1731010155670,-1439.63,0.00025986,2]
[341585674,1731010155691,-1987.23,0.0002606,2]
[341585675,1731010155713,-155.5,0.00026078,2]
[341585676,1731010155734,-155.5,0.00026143,2]
[341585677,1731010155755,-294.63,0.00026148,120]
[341585678,1731010155775,-1000.0,0.00026197,2]
[341585679,1731010155798,-155.5,0.00026208,2]
[341585680,1731010155819,-1983.52486721,0.0002621,2]
[341585681,1731010155840,-155.5,0.00026273,2]
[341585682,1731010155863,-155.5,0.00026338,2]
[341585683,1731010155884,-150.0,0.00026343,2]
[341585684,1731010155906,-500.0,0.000264,120]
[341585685,1731010155927,-1987.23,0.00026459,2]
[341585686,1731010155947,-168.33,0.0002649,2]
[341585687,1731010155968,-152.4,0.00026548,2]
[341585688,1731010155988,-150.99,0.00026645,2]
[341585689,1731010159092,-1300.0,0.00026794,7]
[341585690,1731010159120,-1987.23,0.00026858,2]
[341585691,1731010159146,-800.0,0.00026986,120]
[341585692,1731010159172,-899.99999904,0.00027,28]
[341585693,1731010159197,-400.0,0.00027,2]
[341585694,1731010159223,-175.0,0.00027,2]
[341585695,1731010170361,-259.91,0.00027062,2]
[341585696,1731010170382,-500.0,0.00027068,7]
[341585697,1731010170403,-704.7479,0.00027102,2]
[341585698,1731010170423,-164.78,0.00027143,2]
[341585699,1731010170445,-1987.23,0.00027258,2]
[341585700,1731010170466,-1000.0,0.00027339,2]
[341585701,1731010170486,-2500.0,0.00027339,2]
[341585702,1731010170507,-3844.01749843,0.00027339,2]
[341585703,1731010170527,-4575.6586,0.0002734,2]
[341585704,1731010170551,-3340.67600157,0.0002734,2]
[341585705,1731010189380,514.73567206,0.00025972,7]
[341585706,1731010189402,685.26432794,0.00025972,7]
[341585707,1731010190913,172.48,0.0002669,2]
[341585708,1731010191044,1200.0,0.00026794,7]
[341585709,1731010203206,200.0,0.00023,2]
[341585710,1731010204402,320.0,0.000253,10]
[341585711,1731010218674,249.77881202,0.000253,2]
[341585712,1731010231618,-500.0,0.00027068,7]
[341585713,1731010231629,-2500.0,0.00027339,2]
[341585714,1731010231638,-410.50407077,0.0002734,2]
[341585715,1731010231651,-607.9791,0.0002734,2]
[341585716,1731010231662,-285.29701288,0.0002734,2]
[341585717,1731010231678,-4268.43711478,0.0002734,2]
[341585718,1731010231688,-358.00198914,0.0002734,2]
[341585719,1731010231701,-187.31918546,0.0002734,2]
[341585720,1731010231712,-8705.45858163,0.00027397,2]
[341585721,1731010231728,-17510.93051562,0.00027397,2]
[341585722,1731010231854,-1540.14980589,0.00027397,2]
[341585723,1731010231865,-12846.37425847,0.00027397,2]
[341585724,1731010231897,-9397.08683839,0.00027397,2]
[341585725,1731010231907,-3376.49,0.00027397,2]
[341585726,1731010231916,-605.57,0.00027397,2]
[341585727,1731010231925,-677.88,0.00027397,2]
[341585728,1731010231935,-200.0,0.00027397,7]
[341585729,1731010231944,-500.0,0.000274,120]
[341585730,1731010231953,-1000.0,0.000274,4]
[341585731,1731010231962,-567.53,0.0002742,2]
[341585732,1731010231971,-202.71243954,0.0002743,2]
[341585733,1731010231980,-500.0,0.00027438,2]
[341585734,1731010231989,-500.0,0.00027438,2]
[341585735,1731010231998,-500.0,0.00027438,2]
[341585736,1731010232008,-500.0,0.00027438,2]
[341585737,1731010232018,-500.0,0.00027438,2]
[341585738,1731010232027,-500.0,0.00027438,2]
[341585739,1731010232036,-500.0,0.00027438,2]
[341585740,1731010232045,-500.0,0.00027438,2]
[341585741,1731010232055,-500.0,0.00027438,2]
[341585742,1731010232063,-500.0,0.00027438,2]
[341585743,1731010232073,-500.0,0.00027438,2]
[341585744,1731010232082,-500.0,0.00027438,2]
[341585745,1731010232096,-500.0,0.00027438,2]
[341585746,1731010232105,-500.0,0.00027438,2]
[341585747,1731010232114,-500.0,0.00027438,2]
[341585748,1731010232123,-205.38304727,0.00027438,2]
[341585749,1731010232133,-2506.14,0.00027438,2]
[341585750,1731010232508,-796.01,0.00027438,2]
[341585751,1731010232519,-500.0,0.00027438,2]
[341585752,1731010232529,-500.0,0.00027438,2]
[341585753,1731010232538,-199.401782,0.00027438,2]
[341585754,1731010232548,-1060.6,0.00027438,2]
[341585755,1731010232557,-155.474606,0.00027438,2]
[341585756,1731010232567,-500.0,0.00027438,2]
[341585757,1731010232577,-1945.76,0.00027438,2]
[341585758,1731010232587,-1941.21,0.00027438,2]
[341585759,1731010232597,-7128.49,0.00027438,2]
[341585760,1731010232606,-324.63142616,0.00027438,2]
[341585761,1731010233239,250.0,0.00026585,2]
[341585765,1731010237789,-175.36857384,0.00027438,2]
[341585766,1731010237799,-500.0,0.00027438,2]
[341585767,1731010237810,-681.2,0.00027438,2]
[341585768,1731010237819,-777.99,0.00027438,2]
[341585769,1731010237828,-557.82,0.00027438,2]
[341585770,1731010237838,-1231.7,0.00027438,2]
[341585771,1731010237847,-737.6,0.00027438,2]
[341585772,1731010237857,-500.0,0.00027438,2]
[341585773,1731010237866,-773.93,0.00027438,2]
[341585774,1731010237875,-500.0,0.00027438,2]
[341585775,1731010237885,-1637.3,0.00027438,2]
[341585776,1731010237895,-4194.51,0.00027438,2]
[341585777,1731010237905,-2666.06,0.00027438,2]
[341585778,1731010237915,-919.43,0.00027438,2]
[341585779,1731010237924,-1157.71,0.00027438,2]
[341585780,1731010237933,-565.98,0.00027438,2]
[341585781,1731010237943,-500.0,0.00027438,2]
[341585782,1731010237954,-673.94,0.00027438,2]
[341585783,1731010237964,-500.0,0.00027438,2]
[341585784,1731010237973,-859.05,0.00027438,2]
[341585785,1731010237983,-500.0,0.00027438,2]
[341585786,1731010237992,-2330.86,0.00027438,2]
[341585787,1731010238001,-533.94,0.00027438,2]
[341585788,1731010238012,-500.0,0.00027438,2]
[341585789,1731010238022,-83.83129368,0.00027438,2]
[341585790,1731010238054,-619.27870632,0.00027438,2]
[341585791,1731010238063,-502.08,0.00027438,2]
[341585792,1731010238073,-988.04,0.00027438,2]
[341585793,1731010238172,-500.0,0.00027438,2]
[341585794,1731010238183,-943.93,0.00027438,2]
[341585795,1731010238194,-717.28,0.00027438,2]
[341585796,1731010238203,-858.25,0.00027438,2]
[341585797,1731010238213,-858.42,0.00027438,2]
[341585798,1731010238222,-941.21,0.00027438,2]
[341585799,1731010238231,-2401.72,0.00027438,2]
[341585800,1731010238241,-698.3,0.00027438,2]
[341585801,1731010238251,-762.84,0.00027438,2]
[341585802,1731010238260,-500.0,0.00027439,2]
[341585803,1731010238269,-537.93,0.00027439,2]
[341585804,1731010238279,-1570.05,0.00027439,2]
[341585805,1731010238288,-500.0,0.00027439,2]
[341585806,1731010238298,-800.33,0.00027439,2]
[341585807,1731010238307,-500.0,0.00027439,2]
[341585808,1731010238318,-500.0,0.00027439,2]
[341585809,1731010238327,-646.42,0.00027439,2]
[341585810,1731010238336,-500.0,0.00027439,2]
[341585811,1731010238347,-500.0,0.00027439,2]
[341585812,1731010238356,-500.0,0.00027439,2]
[341585813,1731010238366,-500.0,0.00027439,2]
[341585814,1731010238375,-500.0,0.00027439,2]
[341585815,1731010238385,-500.0,0.00027439,2]
[341585816,1731010238394,-500.0,0.00027439,2]
[341585817,1731010238403,-500.0,0.00027439,2]
[341585818,1731010238413,-500.12,0.00027439,2]
[341585819,1731010238422,-500.0,0.00027439,2]
[341585820,1731010238432,-1094.79,0.00027439,2]
[341585821,1731010238442,-500.0,0.00027439,2]
[341585822,1731010238451,-500.0,0.00027439,2]
[341585823,1731010238460,-609.79,0.00027439,2]
[341585824,1731010238470,-500.0,0.00027439,2]
[341585825,1731010238480,-576.93,0.00027439,2]
[341585826,1731010238489,-500.0,0.00027439,2]
[341585827,1731010238498,-830.06,0.00027439,2]
[341585828,1731010238508,-500.0,0.00027439,2]
[341585829,1731010238517,-275.93356561,0.00027439,2]
[341585830,1731010238527,-502.48,0.00027439,2]
[341585831,1731010238536,-500.0,0.00027439,2]
[341585832,1731010238547,-500.0,0.00027439,2]
[341585833,1731010238556,-500.0,0.00027439,2]
[341585834,1731010238567,-500.0,0.00027439,2]
[341585835,1731010238577,-500.0,0.00027439,2]
[341585836,1731010238587,-511.27,0.00027439,2]
[341585837,1731010238598,-500.0,0.00027439,2]
[341585838,1731010238607,-500.0,0.00027439,2]
[341585839,1731010238618,-869.15,0.00027439,2]
[341585840,1731010238629,-1039.6,0.00027439,2]
[341585841,1731010238638,-963.0,0.00027439,2]
[341585842,1731010238648,-500.0,0.00027439,2]
[341585843,1731010238657,-685.25,0.00027439,2]
[341585844,1731010238666,-500.0,0.00027439,2]
[341585845,1731010238680,-500.0,0.00027439,2]
[341585846,1731010238689,-500.0,0.00027439,2]
[341585847,1731010238699,-526.94,0.00027439,2]
[341585848,1731010238708,-500.0,0.00027439,2]
[341585849,1731010238718,-500.0,0.00027439,2]
[341585850,1731010238728,-500.0,0.00027439,2]
[341585851,1731010238736,-500.0,0.00027439,2]
[341585852,1731010238746,-525.18,0.00027439,2]
[341585853,1731010238754,-649.39,0.00027439,2]
[341585854,1731010238763,-500.0,0.00027439,2]
[341585855,1731010238772,-500.0,0.00027439,2]
[341585856,1731010238782,-500.0,0.00027439,2]
[341585857,1731010238791,-746.75,0.00027439,2]
[341585858,1731010238800,-500.0,0.00027439,2]
[341585859,1731010238809,-500.0,0.00027439,2]
[341585860,1731010238818,-505.67493409,0.00027439,2]
[341585861,1731010238827,-500.0,0.00027439,2]
[341585862,1731010238836,-500.0,0.00027439,2]
[341585863,1731010238846,-500.0,0.00027439,2]
[341585864,1731010238855,-500.0,0.00027439,2]
[341585865,1731010238864,-500.0,0.00027439,2]
[341585866,1731010238873,-500.0,0.00027439,2]
[341585867,1731010238882,-500.0,0.00027439,2]
[341585868,1731010238891,-500.0,0.00027439,2]
[341585869,1731010238900,-500.0,0.00027439,2]
[341585870,1731010238909,-500.0,0.00027439,2]
[341585871,1731010238918,-500.0,0.00027439,2]
[341585872,1731010238927,-623.38,0.00027439,2]
[341585873,1731010238936,-500.0,0.00027439,2]
[341585874,1731010238945,-378.82355555,0.00027439,2]
[341585875,1731010238955,-500.0,0.00027439,2]
[341585876,1731010238963,-500.0,0.00027439,2]
[341585877,1731010238973,-500.0,0.00027439,2]
[341585878,1731010238982,-766.95,0.00027439,2]
[341585879,1731010238991,-500.0,0.00027439,2]
[341585880,1731010239000,-500.0,0.00027439,2]
[341585881,1731010239011,-1208.18,0.00027439,2]
[341585882,1731010239020,-513.5,0.00027439,2]
[341585883,1731010239030,-500.0,0.00027439,2]
[341585884,1731010239039,-508.16,0.00027439,2]
[341585885,1731010239048,-500.0,0.00027439,2]
[341585886,1731010239057,-200.0,0.00027439,2]
[341585887,1731010239066,-500.0,0.00027439,2]
[341585888,1731010239076,-500.0,0.00027439,2]
[341585889,1731010239084,-500.0,0.00027439,2]
[341585890,1731010239094,-693.79,0.00027439,2]
[341585891,1731010239104,-500.0,0.00027439,2]
[341585892,1731010239113,-500.0,0.00027439,2]
[341585893,1731010239122,-500.0,0.00027439,2]
[341585894,1731010239131,-500.0,0.00027439,2]
[341585895,1731010239140,-500.0,0.00027439,2]
[341585896,1731010239149,-632.28,0.00027439,2]
[341585897,1731010239159,-500.0,0.00027439,2]
[341585898,1731010239168,-500.0,0.00027439,2]
[341585899,1731010239177,-500.0,0.00027439,2]
[341585900,1731010239186,-708.91,0.00027439,2]